[Event "Late-Titled-Tuesday-Blitz-February-27-2024"]
[Site "Chess.com"]
[Date "2024.02.27"]
[Round "11"]
[White "mightysmasher"]
[Black "ElHelvetico"]
[Result "0-1"]
[WhiteElo "2584"]
[BlackElo "2748"]
[TimeControl "180+1"]
[EndTime "16:08:25 PST"]
[Termination "ElHelvetico won by checkmate"]

1. e4 {[%clk 0:03:00.9]} 1... g6 {[%clk 0:02:59.4]} 2. d4 {[%clk 0:03:01]} 2...
Bg7 {[%clk 0:03:00]} 3. Nf3 {[%clk 0:03:01.5]} 3... d6 {[%clk 0:03:00.4]} 4. c4
{[%clk 0:03:01.7]} 4... c5 {[%clk 0:02:57.7]} 5. Nc3 {[%clk 0:03:01]} 5... cxd4
{[%clk 0:02:56.3]} 6. Nxd4 {[%clk 0:03:01]} 6... Nc6 {[%clk 0:02:55.2]} 7. Be3
{[%clk 0:02:59.4]} 7... Nf6 {[%clk 0:02:42.5]} 8. Be2 {[%clk 0:02:58.1]} 8...
O-O {[%clk 0:02:39.7]} 9. O-O {[%clk 0:02:57.5]} 9... Bd7 {[%clk 0:02:37.9]} 10.
f3 {[%clk 0:02:57.1]} 10... Nxd4 {[%clk 0:02:37.7]} 11. Bxd4 {[%clk 0:02:54.3]}
11... a5 {[%clk 0:02:38.6]} 12. Qd2 {[%clk 0:02:53.9]} 12... Bc6 {[%clk
0:02:38.4]} 13. Rad1 {[%clk 0:02:52.9]} 13... Nd7 {[%clk 0:02:38.3]} 14. Bxg7
{[%clk 0:02:52.4]} 14... Kxg7 {[%clk 0:02:39.2]} 15. Qd4+ {[%clk 0:02:52.5]}
15... Kg8 {[%clk 0:02:39.3]} 16. Nd5 {[%clk 0:02:51.7]} 16... Bxd5 {[%clk
0:02:38.2]} 17. cxd5 {[%clk 0:02:51.2]} 17... Qb6 {[%clk 0:02:28.3]} 18. Qxb6
{[%clk 0:02:49.6]} 18... Nxb6 {[%clk 0:02:29.2]} 19. Rc1 {[%clk 0:02:49.3]}
19... Rfc8 {[%clk 0:02:26.3]} 20. b3 {[%clk 0:02:48.1]} 20... a4 {[%clk
0:02:06.6]} 21. bxa4 {[%clk 0:02:43.3]} 21... Nxa4 {[%clk 0:02:03.8]} 22. Bc4
{[%clk 0:02:35.7]} 22... Rc5 {[%clk 0:01:59.9]} 23. Bb3 {[%clk 0:02:33.2]} 23...
Nc3 {[%clk 0:02:00.1]} 24. Kf2 {[%clk 0:02:28.1]} 24... b5 {[%clk 0:01:48.6]}
25. Ke3 {[%clk 0:02:24.5]} 25... Kg7 {[%clk 0:01:37.3]} 26. Kd3 {[%clk
0:02:21.4]} 26... Nxa2 {[%clk 0:01:29.5]} 27. Rxc5 {[%clk 0:01:56]} 27... dxc5
{[%clk 0:01:30.4]} 28. Bxa2 {[%clk 0:01:49.5]} 28... Rxa2 {[%clk 0:01:31.3]} 29.
Rb1 {[%clk 0:01:48.2]} 29... b4 {[%clk 0:01:22.3]} 30. Kc4 {[%clk 0:01:46.5]}
30... Rc2+ {[%clk 0:01:21.7]} 31. Kb5 {[%clk 0:01:45.8]} 31... Kf6 {[%clk
0:01:03.6]} 32. f4 {[%clk 0:01:44.8]} 32... Rxg2 {[%clk 0:01:00.8]} 33. Kxc5
{[%clk 0:01:43.1]} 33... Rc2+ {[%clk 0:00:53.1]} 34. Kd4 {[%clk 0:01:39]} 34...
Rd2+ {[%clk 0:00:51.3]} 35. Ke3 {[%clk 0:01:38.7]} 35... Rxh2 {[%clk 0:00:51.3]}
36. Rxb4 {[%clk 0:01:38.5]} 36... h5 {[%clk 0:00:44.3]} 37. Rb6+ {[%clk
0:01:37]} 37... Kg7 {[%clk 0:00:37.3]} 38. Rb7 {[%clk 0:01:36.1]} 38... Kf6
{[%clk 0:00:35]} 39. e5+ {[%clk 0:01:33.3]} 39... Kf5 {[%clk 0:00:35.3]} 40.
Rxe7 {[%clk 0:01:32.8]} 40... Rh3+ {[%clk 0:00:35.8]} 41. Kf2 {[%clk 0:01:32.8]}
41... Kxf4 {[%clk 0:00:35.7]} 42. d6 {[%clk 0:01:29.3]} 42... Rd3 {[%clk
0:00:35]} 43. d7 {[%clk 0:01:23.8]} 43... g5 {[%clk 0:00:22.9]} 44. Kg2 {[%clk
0:01:11.5]} 44... Rd5 {[%clk 0:00:15.7]} 45. Rxf7+ {[%clk 0:01:06.1]} 45... Kxe5
{[%clk 0:00:15.7]} 46. Rh7 {[%clk 0:01:05.7]} 46... h4 {[%clk 0:00:12.2]} 47.
Kh3 {[%clk 0:01:04.8]} 47... Kf6 {[%clk 0:00:08.9]} 48. Kg4 {[%clk 0:01:01.6]}
48... Rd4+ {[%clk 0:00:09.2]} 49. Kh3 {[%clk 0:00:49]} 49... Rd3+ {[%clk
0:00:09.7]} 50. Kg4 {[%clk 0:00:46.7]} 50... Rd4+ {[%clk 0:00:10.1]} 51. Kh3
{[%clk 0:00:45.5]} 51... Kg6 {[%clk 0:00:10.7]} 52. Re7 {[%clk 0:00:44.7]} 52...
Rd3+ {[%clk 0:00:10.9]} 53. Kg2 {[%clk 0:00:42.6]} 53... Kf6 {[%clk 0:00:09.9]}
54. Rh7 {[%clk 0:00:42]} 54... Ke6 {[%clk 0:00:09]} 55. Rg7 {[%clk 0:00:37.2]}
55... Kf5 {[%clk 0:00:09.2]} 56. Re7 {[%clk 0:00:36.9]} 56... Kg4 {[%clk
0:00:07]} 57. Re4+ {[%clk 0:00:36]} 57... Kh5 {[%clk 0:00:07.1]} 58. Re7 {[%clk
0:00:36.2]} 58... Rd2+ {[%clk 0:00:04.7]} 59. Kf3 {[%clk 0:00:31.7]} 59... g4+
{[%clk 0:00:04.1]} 60. Kf4 {[%clk 0:00:31.1]} 60... Rd4+ {[%clk 0:00:04]} 61.
Kf5 {[%clk 0:00:29]} 61... Rd5+ {[%clk 0:00:01.9]} 62. Ke6 {[%clk 0:00:24]}
62... Rd1 {[%clk 0:00:02]} 63. Rh7+ {[%clk 0:00:23.6]} 63... Kg5 {[%clk
0:00:02.1]} 64. Rg7+ {[%clk 0:00:20.2]} 64... Kf4 {[%clk 0:00:02.5]} 65. Rf7+
{[%clk 0:00:20.3]} 65... Kg3 {[%clk 0:00:02.7]} 66. Rf5 {[%clk 0:00:20.5]} 66...
h3 {[%clk 0:00:02.4]} 67. Rd5 {[%clk 0:00:20.4]} 67... Rxd5 {[%clk 0:00:03.2]}
68. Kxd5 {[%clk 0:00:20.3]} 68... h2 {[%clk 0:00:04.1]} 69. d8=Q {[%clk
0:00:20]} 69... h1=Q+ {[%clk 0:00:05]} 70. Ke5 {[%clk 0:00:19.1]} 70... Qe1+
{[%clk 0:00:05.1]} 71. Kf5 {[%clk 0:00:18.8]} 71... Qf2+ {[%clk 0:00:05.4]} 72.
Kg5 {[%clk 0:00:16.4]} 72... Qf4+ {[%clk 0:00:05.9]} 73. Kh5 {[%clk 0:00:14.3]}
73... Qe5+ {[%clk 0:00:06.3]} 74. Kg6 {[%clk 0:00:14]} 74... Kh3 {[%clk
0:00:06.8]} 75. Qd7 {[%clk 0:00:10.6]} 75... Qe4+ {[%clk 0:00:05.6]} 76. Kg5
{[%clk 0:00:09.6]} 76... Qe3+ {[%clk 0:00:05.8]} 77. Kh5 {[%clk 0:00:08.4]}
77... Qe5+ {[%clk 0:00:06]} 78. Kg6 {[%clk 0:00:08.6]} 78... Kh4 {[%clk
0:00:05.8]} 79. Qd8+ {[%clk 0:00:07.4]} 79... Kg3 {[%clk 0:00:05.7]} 80. Qd3+
{[%clk 0:00:07.2]} 80... Kf2 {[%clk 0:00:05.1]} 81. Qd2+ {[%clk 0:00:04.8]}
81... Qe2 {[%clk 0:00:05.1]} 82. Qf4+ {[%clk 0:00:04.5]} 82... Qf3 {[%clk
0:00:05.6]} 83. Qd2+ {[%clk 0:00:04.3]} 83... Qe2 {[%clk 0:00:06]} 84. Qf4+
{[%clk 0:00:04.4]} 84... Kg2 {[%clk 0:00:06.6]} 85. Kg5 {[%clk 0:00:03.9]} 85...
g3 {[%clk 0:00:06.8]} 86. Kh4 {[%clk 0:00:03.8]} 86... Qe7+ {[%clk 0:00:07.1]}
87. Kg4 {[%clk 0:00:03.9]} 87... Qg7+ {[%clk 0:00:07.3]} 88. Kh4 {[%clk
0:00:04.4]} 88... Qh7+ {[%clk 0:00:07.7]} 89. Kg4 {[%clk 0:00:04.9]} 89... Qh3+
{[%clk 0:00:08.3]} 90. Kg5 {[%clk 0:00:04.8]} 90... Kh2 {[%clk 0:00:09.2]} 91.
Qe5 {[%clk 0:00:02.5]} 91... Qh7 {[%clk 0:00:08.3]} 92. Qe2+ {[%clk 0:00:02.4]}
92... g2 {[%clk 0:00:08.4]} 93. Qe5+ {[%clk 0:00:02]} 93... Kh1 {[%clk
0:00:08.8]} 94. Qe4 {[%clk 0:00:01.4]} 94... Qxe4 {[%clk 0:00:08.8]} 95. Kh5
{[%clk 0:00:01.4]} 95... g1=Q {[%clk 0:00:07.5]} 96. Kh6 {[%clk 0:00:02.3]}
96... Qgg6# {[%clk 0:00:07.7]} 0-1